fUSD/lending_fUSD_20240718
["ID","MTS","AMOUNT","RATE_DAILY","PERIOD"]
[332513978,1721287907246,-828.72,0.00021917,2]
[332513979,1721287907256,-935.3,0.00021917,2]
[332513980,1721287907265,-500.0,0.00021917,2]
[332513981,1721287907274,-500.0,0.00021917,2]
[332513982,1721287907283,-825.13,0.00021917,2]
[332513983,1721287907293,-500.0,0.00021917,2]
[332513984,1721287907302,-500.0,0.00021917,2]
[332513985,1721287907311,-500.0,0.00021917,2]
[332513986,1721287907320,-500.0,0.00021917,2]
[332513987,1721287907330,-500.0,0.00021917,2]
[332513988,1721287907340,-500.0,0.00021917,2]
[332513989,1721287907350,-500.0,0.00021917,2]
[332513990,1721287907359,-572.09,0.00021917,2]
[332513991,1721287907368,-500.0,0.00021917,2]
[332513992,1721287907377,-500.0,0.00021917,2]
[332513993,1721287907387,-500.0,0.00021917,2]
[332513994,1721287907396,-801.73,0.00021917,2]
[332513995,1721287907406,-500.0,0.00021917,2]
[332513996,1721287907415,-500.0,0.00021917,2]
[332513997,1721287907425,-829.06,0.00021917,2]
[332513998,1721287907435,-500.0,0.00021917,2]
[332513999,1721287907444,-500.0,0.00021917,2]
[332514000,1721287907453,-500.0,0.00021917,2]
[332514001,1721287907463,-500.0,0.00021917,2]
[332514002,1721287907473,-500.0,0.00021917,2]
[332514003,1721287907483,-500.0,0.00021917,2]
[332514004,1721287907493,-500.0,0.00021917,2]
[332514005,1721287907502,-500.0,0.00021917,2]
[332514006,1721287907512,-500.0,0.00021917,2]
[332514007,1721287907521,-500.0,0.00021917,2]
[332514008,1721287907531,-500.0,0.00021917,2]
[332514009,1721287907541,-500.0,0.00021917,2]
[332514010,1721287907550,-500.0,0.00021917,2]
[332514011,1721287907560,-614.68,0.00021917,2]
[332514012,1721287907569,-533.21,0.00021917,2]
[332514013,1721287907579,-1500.37,0.00021917,2]
[332514014,1721287907589,-500.0,0.00021917,2]
[332514015,1721287907602,-622.70825297,0.00021917,2]
[332514016,1721287907616,-500.0,0.00021917,2]
[332514017,1721287907630,-993.33,0.00021917,2]
[332514018,1721287907640,-500.0,0.00021917,2]
[332514019,1721287907650,-500.0,0.00021917,2]
[332514020,1721287907659,-500.0,0.00021917,2]
[332514021,1721287907669,-500.0,0.00021917,2]
[332514022,1721287907678,-916.75,0.00021917,2]
[332514023,1721287907690,-500.0,0.00021917,2]
[332514024,1721287907700,-500.0,0.00021917,2]
[332514025,1721287907709,-500.0,0.00021917,2]
[332514026,1721287907719,-500.0,0.00021917,2]
[332514027,1721287907728,-500.0,0.00021917,2]
[332514028,1721287907737,-839.63,0.00021917,2]
[332514029,1721287907747,-500.0,0.00021917,2]
[332514030,1721287907756,-1099.16,0.00021917,2]
[332514031,1721287907766,-2190.92,0.00021917,2]
[332514032,1721287907775,-500.0,0.00021917,2]
[332514033,1721287907784,-500.0,0.00021917,2]
[332514034,1721287907794,-500.0,0.00021917,2]
[332514035,1721287907803,-769.89,0.00021917,2]
[332514036,1721287907813,-500.0,0.00021917,2]
[332514037,1721287907823,-860.39,0.00021917,2]
[332514038,1721287907833,-1387.79,0.00021917,2]
[332514039,1721287907843,-500.0,0.00021917,2]
[332514040,1721287907856,-500.0,0.00021917,2]
[332514041,1721287907865,-500.0,0.00021917,2]
[332514042,1721287907875,-500.0,0.00021917,2]
[332514043,1721287907884,-500.0,0.00021917,2]
[332514044,1721287907894,-500.0,0.00021917,2]
[332514045,1721287907904,-500.0,0.00021917,2]
[332514046,1721287907914,-621.09,0.00021917,2]
[332514047,1721287907923,-500.0,0.00021917,2]
[332514048,1721287907933,-500.0,0.00021917,2]
[332514049,1721287907943,-2607.0,0.00021917,2]
[332514050,1721287907953,-309.52532914,0.00021917,2]
[332514051,1721287907964,-500.0,0.00021917,2]
[332514052,1721287907973,-500.0,0.00021917,2]
[332514053,1721287907983,-934.95,0.00021917,2]
[332514054,1721287907993,-500.0,0.00021917,2]
[332514055,1721287908002,-500.0,0.00021917,2]
[332514056,1721287908012,-634.32,0.00021917,2]
[332514057,1721287908022,-1185.83,0.00021917,2]
[332514058,1721287908032,-714.68,0.00021917,2]
[332514059,1721287908042,-500.0,0.00021917,2]
[332514060,1721287908051,-500.0,0.00021917,2]
[332514061,1721287908061,-500.0,0.00021917,2]
[332514062,1721287908070,-500.0,0.00021917,2]
[332514063,1721287908080,-706.1,0.00021917,2]
[332514064,1721287908089,-500.0,0.00021917,2]
[332514065,1721287908101,-992.23,0.00021917,2]
[332514066,1721287908110,-500.0,0.00021917,2]
[332514067,1721287908120,-719.06,0.00021917,2]
[332514068,1721287908129,-500.0,0.00021917,2]
[332514069,1721287908139,-500.0,0.00021917,2]
[332514070,1721287908148,-500.0,0.00021917,2]
[332514071,1721287908158,-962.74,0.00021917,2]
[332514072,1721287908167,-500.0,0.00021917,2]
[332514073,1721287908176,-879.71,0.00021917,2]
[332514074,1721287908185,-500.0,0.00021917,2]
[332514075,1721287908195,-4194.17,0.00021917,2]
[332514076,1721287908204,-500.0,0.00021917,2]
[332514077,1721287908213,-500.0,0.00021917,2]
[332514078,1721287908223,-500.0,0.00021917,2]
[332514079,1721287908232,-346.39630931,0.00021917,2]
[332514080,1721287908242,-500.0,0.00021917,2]
[332514081,1721287908251,-500.0,0.00021917,2]
[332514082,1721287908473,-500.0,0.00021917,2]
[332514083,1721287908487,-500.0,0.00021917,2]
[332514084,1721287908497,-796.16,0.00021917,2]
[332514085,1721287908506,-1343.67,0.00021917,2]
[332514086,1721287908515,-500.0,0.00021917,2]
[332514087,1721287908524,-500.0,0.00021917,2]
[332514088,1721287908534,-845.59,0.00021917,2]
[332514089,1721287908544,-500.0,0.00021917,2]
[332514090,1721287908553,-607.98,0.00021917,2]
[332514091,1721287908563,-500.0,0.00021917,2]
[332514092,1721287908573,-884.87,0.00021917,2]
[332514093,1721287908582,-500.0,0.00021917,2]
[332514094,1721287908592,-500.0,0.00021917,2]
[332514095,1721287908604,-500.0,0.00021917,2]
[332514096,1721287908617,-500.0,0.00021917,2]
[332514097,1721287908626,-500.0,0.00021917,2]
[332514098,1721287908636,-500.0,0.00021917,2]
[332514099,1721287908646,-563.78,0.00021917,2]
[332514100,1721287908656,-500.0,0.00021917,2]
[332514101,1721287908666,-664.21,0.00021917,2]
[332514102,1721287908676,-204.09782225,0.00021917,2]
[332514103,1721287908686,-500.0,0.00021917,2]
[332514104,1721287908697,-500.0,0.00021917,2]
[332514105,1721287908707,-619.48,0.00021917,2]
[332514106,1721287908716,-1023.41,0.00021917,2]
[332514107,1721287908726,-500.0,0.00021917,2]
[332514108,1721287908736,-4286.57,0.00021917,2]
[332514109,1721287908745,-699.13,0.00021917,2]
[332514110,1721287908755,-500.0,0.00021917,2]
[332514111,1721287908764,-759.2,0.00021917,2]
[332514112,1721287908773,-500.0,0.00021917,2]
[332514113,1721287908782,-500.0,0.00021917,2]
[332514114,1721287908792,-500.0,0.00021917,2]
[332514115,1721287908801,-500.0,0.00021917,2]
[332514116,1721287908810,-500.0,0.00021917,2]
[332514117,1721287908820,-500.0,0.00021917,2]
[332514118,1721287908829,-500.0,0.00021917,2]
[332514119,1721287908839,-1303.0,0.00021917,2]
[332514120,1721287908849,-664.93,0.00021917,2]
[332514121,1721287908858,-500.0,0.00021917,2]
[332514122,1721287908868,-779.15,0.00021917,2]
[332514123,1721287908877,-799.99,0.00021917,2]
[332514124,1721287908887,-500.0,0.00021917,2]
[332514125,1721287908897,-705.02,0.00021917,2]
[332514126,1721287908907,-500.0,0.00021917,2]
[332514127,1721287908917,-840.9,0.00021917,2]
[332514128,1721287908927,-500.0,0.00021917,2]
[332514129,1721287908937,-500.0,0.00021917,2]
[332514130,1721287908947,-503.5431002,0.00021917,2]
[332514131,1721287908957,-1213.95,0.00021917,2]
[332514132,1721287908967,-500.0,0.00021917,2]
[332514133,1721287908977,-500.0,0.00021917,2]
[332514134,1721287908987,-500.0,0.00021917,2]
[332514135,1721287908997,-500.0,0.00021917,2]
[332514136,1721287909007,-712.43,0.00021917,2]
[332514137,1721287909017,-500.0,0.00021917,2]
[332514138,1721287909026,-500.0,0.00021917,2]
[332514139,1721287909036,-615.07,0.00021917,2]
[332514140,1721287909046,-500.0,0.00021917,2]
[332514141,1721287909055,-500.0,0.00021917,2]
[332514142,1721287909065,-640.55,0.00021917,2]
[332514143,1721287909075,-500.0,0.00021917,2]
[332514144,1721287909084,-500.0,0.00021917,2]
[332514145,1721287909094,-506.64906826,0.00021917,2]
[332514146,1721287909105,-500.0,0.00021917,2]
[332514147,1721287909115,-842.93,0.00021917,2]
[332514148,1721287909125,-500.0,0.00021917,2]
[332514149,1721287909134,-500.0,0.00021917,2]
[332514150,1721287909144,-500.0,0.00021917,2]
[332514151,1721287909155,-515.65,0.00021917,2]
[332514152,1721287909165,-500.0,0.00021917,2]
[332514153,1721287909175,-500.0,0.00021917,2]
[332514154,1721287909185,-500.0,0.00021917,2]
[332514155,1721287909195,-500.0,0.00021917,2]
[332514156,1721287909205,-500.0,0.00021917,2]
[332514157,1721287909215,-500.0,0.00021917,2]
[332514158,1721287909225,-500.0,0.00021917,2]
[332514159,1721287909234,-500.0,0.00021917,2]
[332514160,1721287909245,-964.94,0.00021917,2]
[332514161,1721287909254,-500.0,0.00021917,2]
[332514162,1721287909264,-592.68,0.00021917,2]
[332514163,1721287909274,-500.0,0.00021917,2]
[332514164,1721287909285,-6375.98,0.00021917,2]
[332514165,1721287909295,-1083.93,0.00021917,2]
[332514166,1721287909305,-500.0,0.00021917,2]
[332514167,1721287909315,-500.0,0.00021917,2]
[332514168,1721287909324,-1037.41,0.00021917,2]
[332514169,1721287909334,-500.0,0.00021917,2]
[332514170,1721287909344,-1379.21,0.00021917,2]
[332514171,1721287909355,-500.0,0.00021917,2]
[332514172,1721287909365,-500.0,0.00021917,2]
[332514173,1721287909375,-500.0,0.00021917,2]
[332514174,1721287909385,-500.0,0.00021917,2]
[332514175,1721287909395,-500.0,0.00021917,2]
[332514176,1721287909405,-500.0,0.00021917,2]
[332514177,1721287909416,-500.0,0.00021917,2]
[332514178,1721287909426,-500.0,0.00021917,2]
[332514179,1721287909436,-500.0,0.00021917,2]
[332514180,1721287909447,-500.0,0.00021917,2]
[332514181,1721287909458,-500.0,0.00021917,2]
[332514182,1721287909467,-500.0,0.00021917,2]
[332514183,1721287909477,-500.0,0.00021917,2]
[332514184,1721287909487,-500.0,0.00021917,2]
[332514185,1721287909497,-500.0,0.00021917,2]
[332514186,1721287909508,-500.0,0.00021917,2]
[332514187,1721287909518,-500.0,0.00021917,2]
[332514188,1721287909529,-500.0,0.00021917,2]
[332514189,1721287909538,-500.0,0.00021917,2]
[332514190,1721287909548,-500.0,0.00021917,2]
[332514191,1721287909558,-500.0,0.00021917,2]
[332514192,1721287909567,-500.0,0.00021917,2]
[332514193,1721287909577,-500.0,0.00021917,2]
[332514194,1721287909587,-500.0,0.00021917,2]
[332514195,1721287909598,-348.84975215,0.00021917,2]
[332514196,1721287909611,-500.0,0.00021917,2]
[332514197,1721287909622,-559.08,0.00021917,2]
[332514198,1721287909632,-1777.51,0.00021917,2]
[332514199,1721287909643,-1444.47,0.00021917,2]
[332514200,1721287909653,-500.0,0.00021917,2]
[332514201,1721287909663,-500.0,0.00021917,2]
[332514202,1721287909672,-1147.47,0.00021917,2]
[332514203,1721287909683,-500.0,0.00021917,2]
[332514204,1721287909693,-500.0,0.00021917,2]
[332514205,1721287909703,-815.97,0.00021917,2]
[332514206,1721287909713,-500.0,0.00021917,2]
[332514207,1721287909727,-500.0,0.00021917,2]
[332514208,1721287909737,-500.0,0.00021917,2]
[332514209,1721287909747,-500.0,0.00021917,2]
[332514210,1721287909757,-500.0,0.00021917,2]
[332514211,1721287909767,-500.0,0.00021917,2]
[332514212,1721287909776,-1394.22,0.00021917,2]
[332514213,1721287909786,-1149.47,0.00021917,2]
[332514214,1721287909795,-500.0,0.00021917,2]
[332514215,1721287909805,-500.0,0.00021917,2]
[332514216,1721287909814,-500.0,0.00021917,2]
[332514217,1721287909824,-500.0,0.00021917,2]
[332514218,1721287909834,-588.95,0.00021917,2]
[332514219,1721287909844,-500.0,0.00021917,2]
[332514220,1721287909855,-500.0,0.00021917,2]
[332514221,1721287909865,-7884.99,0.00021917,2]
[332514222,1721287909875,-1142.52,0.00021917,2]
[332514223,1721287909885,-500.0,0.00021917,2]
[332514224,1721287909894,-2350.96,0.00021917,2]
[332514225,1721287909904,-500.0,0.00021917,2]
[332514226,1721287909914,-500.0,0.00021917,2]
[332514227,1721287909923,-500.0,0.00021917,2]
[332514228,1721287909933,-817.71,0.00021917,2]
[332514229,1721287909942,-751.24,0.00021917,2]
[332514230,1721287909952,-567.84,0.00021917,2]
[332514231,1721287909962,-636.19468921,0.00021917,2]
[332514232,1721287909971,-500.0,0.00021917,2]
[332514233,1721287909981,-500.0,0.00021917,2]
[332514234,1721287909991,-150.0,0.00021917,2]
[332514235,1721287910000,-300.0,0.00021917,2]
[332514236,1721287910010,-9262.82,0.00021917,2]
[332514237,1721287910020,-450.0,0.00021917,2]
[332514238,1721287910029,-518.01,0.00021917,2]
[332514239,1721287910039,-1047.43,0.00021917,2]
[332514240,1721287910048,-600.0,0.00021917,2]
[332514241,1721287910058,-750.0,0.00021917,2]
[332514242,1721287910068,-576.17,0.00021917,2]
[332514243,1721287910077,-900.0,0.00021917,2]
[332514244,1721287910087,-1050.0,0.00021917,2]
[332514245,1721287910097,-500.0,0.00021917,2]
[332514246,1721287910108,-1200.0,0.00021917,2]
[332514247,1721287910118,-1350.0,0.00021917,2]
[332514248,1721287910127,-500.0,0.00021917,2]
[332514249,1721287910137,-922.4984284,0.00021917,2]
[332514250,1721287910146,-500.0,0.00021917,2]
[332514251,1721287910156,-500.0,0.00021917,2]
[332514252,1721287910165,-500.0,0.00021917,2]
[332514253,1721287910175,-500.0,0.00021917,2]
[332514254,1721287910185,-425.06408079,0.00021917,2]
[332514255,1721287910194,-943.1,0.00021917,2]
[332514256,1721287910204,-714.81,0.00021917,2]
[332514257,1721287910214,-500.0,0.00021917,2]
[332514258,1721287910223,-500.0,0.00021917,2]
[332514259,1721287910233,-500.0,0.00021917,2]
[332514260,1721287910243,-500.0,0.00021917,2]
[332514261,1721287910252,-559.22,0.00021917,2]
[332514262,1721287910262,-500.0,0.00021917,2]
[332514263,1721287910272,-1700.34,0.00021917,2]
[332514264,1721287910282,-500.0,0.00021917,2]
[332514265,1721287910292,-500.0,0.00021917,2]
[332514266,1721287910302,-671.4,0.00021917,2]
[332514267,1721287910312,-595.86,0.00021917,2]
[332514268,1721287910321,-500.0,0.00021917,2]
[332514269,1721287910331,-500.0,0.00021917,2]
[332514270,1721287910340,-746.33,0.00021917,2]
[332514271,1721287910351,-500.0,0.00021917,2]
[332514272,1721287910361,-500.0,0.00021917,2]
[332514273,1721287910370,-165.72331876,0.00021917,2]
[332514274,1721287910380,-500.0,0.00021917,2]
[332514275,1721287910390,-500.0,0.00021917,2]
[332514276,1721287910399,-500.0,0.00021917,2]
[332514277,1721287910409,-500.0,0.00021917,2]
[332514278,1721287910420,-500.0,0.00021917,2]
[332514279,1721287910430,-897.02,0.00021917,2]
[332514280,1721287910440,-500.0,0.00021917,2]
[332514281,1721287910450,-500.0,0.00021917,2]
[332514282,1721287910459,-500.0,0.00021917,2]
[332514283,1721287910469,-919.85,0.00021917,2]
[332514284,1721287910479,-763.5,0.00021917,2]
[332514285,1721287910489,-915.85,0.00021917,2]
[332514286,1721287910498,-709.03,0.00021917,2]
[332514287,1721287910508,-812.96,0.00021917,2]
[332514288,1721287910518,-500.0,0.00021917,2]
[332514289,1721287910528,-500.0,0.00021917,2]
[332514290,1721287910537,-1583.56,0.00021917,2]
[332514291,1721287910547,-500.0,0.00021917,2]
[332514292,1721287910557,-634.02,0.00021917,2]
[332514293,1721287910566,-500.0,0.00021917,2]
[332514294,1721287910576,-1450.66,0.00021917,2]
[332514295,1721287910585,-1299.19,0.00021917,2]
[332514296,1721287910595,-500.0,0.00021917,2]
[332514297,1721287910613,-500.0,0.00021917,2]
[332514298,1721287910622,-500.0,0.00021917,2]
[332514299,1721287910632,-500.0,0.00021917,2]
[332514300,1721287910643,-500.0,0.00021917,2]
[332514301,1721287910654,-500.0,0.00021917,2]
[332514302,1721287910664,-746.33,0.00021917,2]
[332514303,1721287910674,-560.12308442,0.00021917,2]
[332514304,1721287910684,-746.33,0.00021917,2]
[332514305,1721287910695,-746.33,0.00021917,2]
[332514306,1721287910705,-708.78,0.00021917,2]
[332514307,1721287910715,-746.33,0.00021917,2]
[332514308,1721287910724,-746.33,0.00021917,2]
[332514309,1721287910734,-746.33,0.00021917,2]
[332514310,1721287910744,-500.0,0.00021917,2]
[332514311,1721287910754,-500.0,0.00021917,2]
[332514312,1721287910764,-746.33,0.00021917,2]
[332514313,1721287910774,-948.76,0.00021917,2]
[332514314,1721287910783,-746.33,0.00021917,2]
[332514315,1721287910793,-500.0,0.00021917,2]
[332514316,1721287910802,-500.0,0.00021917,2]
[332514317,1721287910813,-746.33,0.00021917,2]
[332514318,1721287910823,-500.0,0.00021917,2]
[332514319,1721287910833,-746.33,0.00021917,2]
[332514320,1721287910844,-561.55456023,0.00021917,2]
[332514321,1721287910855,-746.33,0.00021917,2]
[332514322,1721287910864,-746.33,0.00021917,2]
[332514323,1721287910874,-746.33,0.00021917,2]
[332514324,1721287910884,-1051.57,0.00021917,2]
[332514325,1721287910893,-746.33,0.00021917,2]
[332514326,1721287910903,-2003.88,0.00021917,2]
[332514327,1721287910912,-746.33,0.00021917,2]
[332514328,1721287911019,-1013.83,0.00021917,2]
[332514329,1721287911029,-796.81,0.00021917,2]
[332514330,1721287911039,-746.33,0.00021917,2]
[332514331,1721287911049,-746.33,0.00021917,2]
[332514332,1721287911058,-601.06,0.00021917,2]
[332514333,1721287911068,-515.65,0.00021917,2]
[332514334,1721287911077,-746.33,0.00021917,2]
[332514335,1721287911086,-500.0,0.00021917,2]
[332514336,1721287911096,-500.0,0.00021917,2]
[332514337,1721287911109,-746.33,0.00021917,2]
[332514338,1721287911119,-746.33,0.00021917,2]
[332514339,1721287911130,-544.27,0.00021917,2]
[332514340,1721287911139,-746.33,0.00021917,2]
[332514341,1721287911150,-503.35,0.00021917,2]
[332514342,1721287911159,-746.33,0.00021917,2]
[332514343,1721287911169,-746.36248147,0.00021917,2]
[332514344,1721287911179,-245.29982024,0.00021917,2]
[332514345,1721287911188,-500.0,0.00021917,2]
[332514346,1721287911198,-1547.31,0.00021917,2]
[332514347,1721287911207,-500.0,0.00021917,2]
[332514348,1721287911217,-500.0,0.00021917,2]
[332514349,1721287911227,-500.0,0.00021917,2]
[332514350,1721287911237,-500.0,0.00021917,2]
[332514351,1721287911246,-612.66,0.00021917,2]
[332514352,1721287911255,-500.0,0.00021917,2]
[332514353,1721287911265,-677.55,0.00021917,2]
[332514354,1721287911274,-957.7,0.00021917,2]
[332514355,1721287911283,-999.04,0.00021917,2]
[332514356,1721287911294,-461.04845033,0.00021917,2]
[332514357,1721287911303,-500.0,0.00021917,2]
[332514358,1721287911313,-500.0,0.00021917,2]
[332514359,1721287911322,-549.83,0.00021917,2]
[332514360,1721287911332,-500.0,0.00021917,2]
[332514361,1721287911342,-798.47,0.00021917,2]
[332514362,1721287911356,-500.0,0.00021917,2]
[332514363,1721287911366,-695.01,0.00021917,2]
[332514364,1721287911376,-500.0,0.00021917,2]
[332514365,1721287911386,-500.0,0.00021917,2]
[332514366,1721287911396,-539.79,0.00021917,2]
[332514367,1721287911405,-500.0,0.00021917,2]
[332514368,1721287911416,-6797.41,0.00021917,2]
[332514369,1721287911426,-500.0,0.00021917,2]
[332514370,1721287911435,-6797.41,0.00021917,2]
[332514371,1721287911445,-6797.41,0.00021917,2]
[332514372,1721287911454,-518.09,0.00021917,2]
[332514373,1721287911464,-6797.41,0.00021917,2]
[332514374,1721287911473,-500.0,0.00021917,2]
[332514375,1721287911483,-6797.41,0.00021917,2]
[332514376,1721287911493,-500.0,0.00021917,2]
[332514377,1721287911503,-500.0,0.00021917,2]
[332514378,1721287911513,-6797.41,0.00021917,2]
[332514379,1721287911522,-6797.41,0.00021917,2]
[332514380,1721287911532,-6797.41,0.00021917,2]
[332514381,1721287911542,-6797.41,0.00021917,2]
[332514382,1721287911551,-6797.41,0.00021917,2]
[332514383,1721287911561,-813.28,0.00021917,2]
[332514384,1721287911571,-500.0,0.00021917,2]
[332514385,1721287911580,-1656.81,0.00021917,2]
[332514386,1721287911589,-6797.41,0.00021917,2]
[332514387,1721287911600,-500.0,0.00021917,2]
[332514388,1721287911613,-6797.41,0.00021917,2]
[332514389,1721287911623,-6797.41,0.00021917,2]
[332514390,1721287911632,-6797.41,0.00021917,2]
[332514391,1721287911642,-500.0,0.00021917,2]
[332514392,1721287911651,-500.0,0.00021917,2]
[332514393,1721287911661,-6797.41,0.00021917,2]
[332514394,1721287911671,-945.22,0.00021917,2]
[332514395,1721287911682,-6797.41,0.00021917,2]
[332514396,1721287911692,-6797.41,0.00021917,2]
[332514397,1721287911701,-6797.41,0.00021917,2]
[332514398,1721287911711,-500.0,0.00021917,2]
[332514399,1721287911721,-340.42466443,0.00021917,2]
[332514400,1721287911731,-500.0,0.00021917,2]
[332514401,1721287911742,-6797.41,0.00021917,2]
[332514402,1721287911753,-947.17,0.00021917,2]
[332514403,1721287911763,-500.0,0.00021917,2]
[332514404,1721287911774,-6797.41,0.00021917,2]
[332514405,1721287911785,-6797.41,0.00021917,2]
[332514406,1721287911797,-706.37,0.00021917,2]
[332514407,1721287911808,-6797.41,0.00021917,2]
[332514408,1721287911817,-500.0,0.00021917,2]
[332514409,1721287911827,-6797.41,0.00021917,2]
[332514410,1721287911837,-500.0,0.00021917,2]
[332514411,1721287911846,-500.0,0.00021917,2]
[332514412,1721287911857,-6797.417651,0.00021917,2]
[332514413,1721287911866,-500.0,0.00021917,2]
[332514414,1721287911876,-583.2126296,0.00021917,2]
[332514415,1721287911886,-500.0,0.00021917,2]
[332514416,1721287911895,-500.0,0.00021917,2]
[332514417,1721287911905,-500.0,0.00021917,2]
[332514418,1721287911914,-1135.75,0.00021917,2]
[332514419,1721287911923,-500.0,0.00021917,2]
[332514420,1721287911933,-500.0,0.00021917,2]
[332514421,1721287911943,-500.0,0.00021917,2]
[332514422,1721287911952,-673.53,0.00021917,2]
[332514423,1721287911962,-836.84,0.00021917,2]
[332514424,1721287911972,-3128.96,0.00021917,2]
[332514425,1721287911982,-500.0,0.00021917,2]
[332514426,1721287911992,-500.0,0.00021917,2]
[332514427,1721287912002,-500.0,0.00021917,2]
[332514428,1721287912011,-500.0,0.00021917,2]
[332514429,1721287912021,-500.0,0.00021917,2]
[332514430,1721287912031,-500.0,0.00021917,2]
[332514431,1721287912040,-842.49,0.00021917,2]
[332514432,1721287912050,-500.0,0.00021917,2]
[332514433,1721287912059,-557.31,0.00021917,2]
[332514434,1721287912069,-669.1,0.00021917,2]
[332514435,1721287912079,-500.0,0.00021917,2]
[332514436,1721287912088,-3223.32,0.00021917,2]
[332514437,1721287912100,-542.57,0.00021917,2]
[332514438,1721287912109,-500.0,0.00021917,2]
[332514439,1721287912119,-500.0,0.00021917,2]
[332514440,1721287912129,-500.0,0.00021917,2]
[332514441,1721287912138,-500.0,0.00021917,2]
[332514442,1721287912148,-884.02,0.00021917,2]
[332514443,1721287912157,-500.0,0.00021917,2]
[332514444,1721287912166,-1416.46,0.00021917,2]
[332514445,1721287912177,-500.0,0.00021917,2]
[332514446,1721287912187,-808.77,0.00021917,2]
[332514447,1721287912198,-525.77,0.00021917,2]
[332514448,1721287912207,-500.0,0.00021917,2]
[332514449,1721287912216,-500.0,0.00021917,2]
[332514450,1721287912226,-500.0,0.00021917,2]
[332514451,1721287912236,-500.0,0.00021917,2]
[332514452,1721287912245,-500.0,0.00021917,2]
[332514453,1721287912255,-888.04,0.00021917,2]
[332514454,1721287912266,-813.18,0.00021917,2]
[332514455,1721287912276,-500.0,0.00021917,2]
[332514456,1721287912286,-2204.96,0.00021917,2]
[332514457,1721287912295,-500.0,0.00021917,2]
[332514458,1721287912306,-500.0,0.00021917,2]
[332514459,1721287912316,-500.0,0.00021917,2]
[332514460,1721287912326,-617.34,0.00021917,2]
[332514461,1721287912336,-503.15,0.00021917,2]
[332514462,1721287912345,-500.0,0.00021917,2]
[332514463,1721287912356,-500.0,0.00021917,2]
[332514464,1721287912365,-500.0,0.00021917,2]
[332514465,1721287912375,-500.0,0.00021917,2]
[332514466,1721287912385,-500.0,0.00021917,2]
[332514467,1721287912395,-550.97,0.00021917,2]
[332514468,1721287912404,-698.16,0.00021917,2]
[332514469,1721287912415,-556.49,0.00021917,2]
[332514470,1721287912425,-500.0,0.00021917,2]
[332514471,1721287912435,-500.0,0.00021917,2]
[332514472,1721287912444,-773.79,0.00021917,2]
[332514473,1721287912454,-500.0,0.00021917,2]
[332514474,1721287912463,-1258.11,0.00021917,2]
[332514475,1721287912472,-1541.61,0.00021917,2]
[332514476,1721287912481,-500.0,0.00021917,2]
[332514477,1721287912492,-1497.76,0.00021917,2]